[Event "Titled Tuesday Blitz August 24 2021"]
[White "Jumanov, Elbek"]
[Black "Ovetchkin, Roman"]
[WhiteFideId "14202905"]
[BlackFideId "4119991"]
[WhiteElo "2067"]
[BlackElo "2432"]
[Result "1/2-1/2"]
[Round "08"]
[TimeControl "180+1"]
[Date "2021.08.24"]
[WhiteClock "0:00:08"]
[BlackClock "0:00:18"]

1. c4 {[%clk 0:03:00]}  Nf6 {[%clk 0:02:59]} 2. Nf3 {[%clk 0:03:00]}  g6 {[%clk 0:02:59]} 3. Nc3 {[%clk 0:03:00]}  Bg7 {[%clk 0:02:59]} 4. g3 {[%clk 0:03:00]}  O-O {[%clk 0:03:00]} 5. Bg2 {[%clk 0:03:00]}  d6 {[%clk 0:03:00]} 6. O-O {[%clk 0:03:01]}  c6 {[%clk 0:02:58]} 7. Rb1 {[%clk 0:03:00]}  e5 {[%clk 0:02:56]} 8. d3 {[%clk 0:02:59]}  a5 {[%clk 0:02:55]} 9. a3 {[%clk 0:02:59]}  h6 {[%clk 0:02:55]} 10. b4 {[%clk 0:02:59]}  axb4 {[%clk 0:02:55]} 11. axb4 {[%clk 0:03:00]}  Re8 {[%clk 0:02:56]} 12. b5 {[%clk 0:02:59]}  d5 {[%clk 0:02:52]} 13. bxc6 {[%clk 0:02:59]}  bxc6 {[%clk 0:02:53]} 14. cxd5 {[%clk 0:02:57]}  cxd5 {[%clk 0:02:53]} 15. Nb5 {[%clk 0:02:56]}  Nc6 {[%clk 0:02:29]} 16. Ba3 {[%clk 0:02:46]}  Bf5 {[%clk 0:01:55]} 17. Bc5 {[%clk 0:01:58]}  Bf8 {[%clk 0:01:40]} 18. Bxf8 {[%clk 0:01:56]}  Kxf8 {[%clk 0:01:39]} 19. Qd2 {[%clk 0:01:54]}  Kg7 {[%clk 0:01:38]} 20. Rfc1 {[%clk 0:01:54]}  Qd7 {[%clk 0:01:33]} 21. Rc5 {[%clk 0:01:35]}  e4 {[%clk 0:01:13]} 22. Nfd4 {[%clk 0:01:34]}  Nxd4 {[%clk 0:01:12]} 23. Nxd4 {[%clk 0:01:34]}  exd3 {[%clk 0:01:11]} 24. exd3 {[%clk 0:01:33]}  Qd6 {[%clk 0:01:08]} 25. Nxf5+ {[%clk 0:01:24]}  gxf5 {[%clk 0:01:09]} 26. Rbc1 {[%clk 0:01:22]}  Qe5 {[%clk 0:01:07]} 27. d4 {[%clk 0:01:00]}  Qe2 {[%clk 0:00:57]} 28. Qxe2 {[%clk 0:00:58]}  Rxe2 {[%clk 0:00:58]} 29. Bxd5 {[%clk 0:00:58]}  Rd8 {[%clk 0:00:44]} 30. Bf3 {[%clk 0:00:57]}  Rd2 {[%clk 0:00:38]} 31. Rxf5 {[%clk 0:00:54]}  R2xd4 {[%clk 0:00:38]} 32. Rc6 {[%clk 0:00:46]}  R4d6 {[%clk 0:00:39]} 33. Rc7 {[%clk 0:00:44]}  R8d7 {[%clk 0:00:38]} 34. Rxd7 {[%clk 0:00:43]}  Rxd7 {[%clk 0:00:38]} 35. h4 {[%clk 0:00:43]}  Rd4 {[%clk 0:00:38]} 36. Kg2 {[%clk 0:00:42]}  Rb4 {[%clk 0:00:37]} 37. Ra5 {[%clk 0:00:41]}  Rd4 {[%clk 0:00:37]} 38. Ra7 {[%clk 0:00:40]}  Rd7 {[%clk 0:00:37]} 39. Ra6 {[%clk 0:00:39]}  Rd2 {[%clk 0:00:36]} 40. Rb6 {[%clk 0:00:36]}  Rd4 {[%clk 0:00:33]} 41. Rb7 {[%clk 0:00:33]}  Rd2 {[%clk 0:00:32]} 42. g4 {[%clk 0:00:29]}  Rd7 {[%clk 0:00:31]} 43. Rb8 {[%clk 0:00:29]}  Rd4 {[%clk 0:00:30]} 44. Kg3 {[%clk 0:00:29]}  Ne4+ {[%clk 0:00:29]} 45. Bxe4 {[%clk 0:00:28]}  Rxe4 {[%clk 0:00:30]} 46. f3 {[%clk 0:00:27]}  Rd4 {[%clk 0:00:30]} 47. Rb6 {[%clk 0:00:26]}  Rc4 {[%clk 0:00:30]} 48. g5 {[%clk 0:00:25]}  hxg5 {[%clk 0:00:29]} 49. hxg5 {[%clk 0:00:26]}  Rd4 {[%clk 0:00:28]} 50. f4 {[%clk 0:00:26]}  Rd5 {[%clk 0:00:26]} 51. Rb7 {[%clk 0:00:25]}  Ra5 {[%clk 0:00:26]} 52. Kg4 {[%clk 0:00:25]}  Rc5 {[%clk 0:00:26]} 53. f5 {[%clk 0:00:24]}  Rc4+ {[%clk 0:00:24]} 54. Kf3 {[%clk 0:00:24]}  Kg8 {[%clk 0:00:19]} 55. f6 {[%clk 0:00:19]}  Ra4 {[%clk 0:00:18]} 56. Rb8+ {[%clk 0:00:19]}  Kh7 {[%clk 0:00:18]} 57. Rf8 {[%clk 0:00:19]}  Kg6 {[%clk 0:00:17]} 58. Rg8+ {[%clk 0:00:18]}  Kf5 {[%clk 0:00:18]} 59. Rg7 {[%clk 0:00:13]}  Rg4 {[%clk 0:00:17]} 60. Rxf7 {[%clk 0:00:12]}  Rxg5 {[%clk 0:00:17]} 61. Rf8 {[%clk 0:00:09]}  Rg6 {[%clk 0:00:17]} 62. f7 {[%clk 0:00:09]}  Kf6 {[%clk 0:00:17]} 63. Rg8 {[%clk 0:00:07]}  Kxf7 {[%clk 0:00:17]} 64. Rxg6 {[%clk 0:00:08]}  Kxg6 {[%clk 0:00:18]} 1/2-1/2


[Site "https://www.chess.com"]

[Event "Titled Tuesday Blitz August 24 2021"]
[White "Kamsky, Gata"]
[Black "Iskusnyh, Sergei"]
[WhiteFideId "2000024"]
[BlackFideId "4120027"]
[WhiteElo "2644"]
[BlackElo "2492"]
[Result "1-0"]
[Round "08"]
[TimeControl "180+1"]
[Date "2021.08.24"]
[WhiteClock "0:00:33"]
[BlackClock "0:00:12"]

1. e4 {[%clk 0:03:00]}  e6 {[%clk 0:02:58]} 2. Qe2 {[%clk 0:02:59]}  c5 {[%clk 0:02:56]} 3. Nf3 {[%clk 0:02:58]}  Nc6 {[%clk 0:02:54]} 4. g3 {[%clk 0:02:58]}  g6 {[%clk 0:02:54]} 5. Bg2 {[%clk 0:02:57]}  Bg7 {[%clk 0:02:55]} 6. O-O {[%clk 0:02:57]}  Nge7 {[%clk 0:02:55]} 7. c3 {[%clk 0:02:57]}  O-O {[%clk 0:02:41]} 8. d3 {[%clk 0:02:50]}  d6 {[%clk 0:02:39]} 9. Na3 {[%clk 0:02:46]}  e5 {[%clk 0:02:37]} 10. Nc2 {[%clk 0:02:38]}  f5 {[%clk 0:02:32]} 11. Rd1 {[%clk 0:02:28]}  Kh8 {[%clk 0:02:21]} 12. a3 {[%clk 0:02:22]}  Be6 {[%clk 0:02:04]} 13. b4 {[%clk 0:02:19]}  Qd7 {[%clk 0:01:48]} 14. Bb2 {[%clk 0:02:18]}  a6 {[%clk 0:01:29]} 15. Ng5 {[%clk 0:01:57]}  Bg8 {[%clk 0:01:21]} 16. d4 {[%clk 0:01:56]}  cxd4 {[%clk 0:01:07]} 17. cxd4 {[%clk 0:01:55]}  f4 {[%clk 0:00:39]} 18. Bh3 {[%clk 0:01:45]}  Qe8 {[%clk 0:00:25]} 19. dxe5 {[%clk 0:01:40]}  Nxe5 {[%clk 0:00:20]} 20. Nd4 {[%clk 0:01:23]}  N7c6 {[%clk 0:00:19]} 21. Nde6 {[%clk 0:01:21]}  Rf6 {[%clk 0:00:18]} 22. Nxg7 {[%clk 0:01:17]}  Kxg7 {[%clk 0:00:18]} 23. Nf3 {[%clk 0:01:11]}  Bc4 {[%clk 0:00:18]} 24. Nxe5 {[%clk 0:00:35]}  Bxe2 {[%clk 0:00:18]} 25. Nd7 {[%clk 0:00:35]}  Bxd1 {[%clk 0:00:17]} 26. Nxf6 {[%clk 0:00:34]}  Qc8 {[%clk 0:00:12]} 27. Bxc8 {[%clk 0:00:33]} 1-0


[Site "https://www.chess.com"]

[Event "Titled Tuesday Blitz August 24 2021"]
[White "Kononenko, Dmitry"]
[Black "Ter-Sahakyan, Samvel"]
[WhiteFideId "14113538"]
[BlackFideId "13302531"]
[WhiteElo "2276"]
[BlackElo "2551"]
[Result "0-1"]
[Round "08"]
[TimeControl "180+1"]
[Date "2021.08.24"]
[WhiteClock "0:00:01"]
[BlackClock "0:00:10"]

1. d4 {[%clk 0:02:55]}  Nf6 {[%clk 0:02:59]} 2. c4 {[%clk 0:02:55]}  e6 {[%clk 0:02:59]} 3. g3 {[%clk 0:02:55]}  d5 {[%clk 0:02:58]} 4. Nf3 {[%clk 0:02:55]}  Be7 {[%clk 0:02:56]} 5. Bg2 {[%clk 0:02:55]}  O-O {[%clk 0:02:56]} 6. O-O {[%clk 0:02:55]}  dxc4 {[%clk 0:02:56]} 7. Qc2 {[%clk 0:02:56]}  a6 {[%clk 0:02:54]} 8. a4 {[%clk 0:02:56]}  Bd7 {[%clk 0:02:54]} 9. Qxc4 {[%clk 0:02:56]}  Bc6 {[%clk 0:02:54]} 10. Bf4 {[%clk 0:02:57]}  Bd6 {[%clk 0:02:49]} 11. Nbd2 {[%clk 0:02:45]}  h6 {[%clk 0:02:43]} 12. Rfe1 {[%clk 0:02:28]}  Nbd7 {[%clk 0:02:40]} 13. Bxd6 {[%clk 0:02:26]}  cxd6 {[%clk 0:02:40]} 14. Qb4 {[%clk 0:02:22]}  d5 {[%clk 0:02:24]} 15. Rec1 {[%clk 0:02:20]}  a5 {[%clk 0:02:21]} 16. Qb3 {[%clk 0:02:18]}  Qb8 {[%clk 0:02:19]} 17. e3 {[%clk 0:02:14]}  Rc8 {[%clk 0:02:12]} 18. Rc3 {[%clk 0:02:09]}  Qd6 {[%clk 0:02:04]} 19. Rac1 {[%clk 0:02:07]}  Qb4 {[%clk 0:02:03]} 20. Qa2 {[%clk 0:01:51]}  Nb6 {[%clk 0:01:43]} 21. b3 {[%clk 0:01:49]}  Be8 {[%clk 0:01:33]} 22. Rxc8 {[%clk 0:01:47]}  Rxc8 {[%clk 0:01:32]} 23. Rxc8 {[%clk 0:01:47]}  Nxc8 {[%clk 0:01:33]} 24. Qc2 {[%clk 0:01:42]}  Nd6 {[%clk 0:01:29]} 25. Ne5 {[%clk 0:01:36]}  b5 {[%clk 0:01:17]} 26. Nd3 {[%clk 0:01:14]}  Qa3 {[%clk 0:01:13]} 27. axb5 {[%clk 0:01:10]}  Bxb5 {[%clk 0:01:00]} 28. Bf3 {[%clk 0:01:07]}  Bxd3 {[%clk 0:00:53]} 29. Qxd3 {[%clk 0:01:01]}  Qb2 {[%clk 0:00:53]} 30. Kg2 {[%clk 0:00:50]}  g6 {[%clk 0:00:52]} 31. h4 {[%clk 0:00:49]}  h5 {[%clk 0:00:51]} 32. Qa6 {[%clk 0:00:42]}  Qxd2 {[%clk 0:00:39]} 33. Qxd6 {[%clk 0:00:43]}  Kg7 {[%clk 0:00:32]} 34. Qc7 {[%clk 0:00:23]}  Qb4 {[%clk 0:00:26]} 35. Qc2 {[%clk 0:00:23]}  Ne8 {[%clk 0:00:23]} 36. g4 {[%clk 0:00:23]}  hxg4 {[%clk 0:00:22]} 37. Bxg4 {[%clk 0:00:24]}  Nf6 {[%clk 0:00:23]} 38. Bf3 {[%clk 0:00:24]}  Qb8 {[%clk 0:00:21]} 39. Qc3 {[%clk 0:00:22]}  Qd8 {[%clk 0:00:20]} 40. Qc5 {[%clk 0:00:19]}  Ng8 {[%clk 0:00:20]} 41. Qc3 {[%clk 0:00:18]}  Nh6 {[%clk 0:00:17]} 42. h5 {[%clk 0:00:18]}  gxh5 {[%clk 0:00:17]} 43. e4 {[%clk 0:00:16]}  Qg5+ {[%clk 0:00:14]} 44. Kf1 {[%clk 0:00:15]}  dxe4 {[%clk 0:00:12]} 45. Bxe4 {[%clk 0:00:15]}  Ng4 {[%clk 0:00:07]} 46. d5+ {[%clk 0:00:15]}  Qf6 {[%clk 0:00:08]} 47. Qxf6+ {[%clk 0:00:13]}  Nxf6 {[%clk 0:00:03]} 48. d6 {[%clk 0:00:11]}  Kf8 {[%clk 0:00:03]} 49. Bc6 {[%clk 0:00:10]}  Nd5 {[%clk 0:00:02]} 50. Kg2 {[%clk 0:00:09]}  Nb4 {[%clk 0:00:02]} 51. Ba4 {[%clk 0:00:09]}  Nd3 {[%clk 0:00:02]} 52. Kg3 {[%clk 0:00:08]}  Nc5 {[%clk 0:00:02]} 53. Bb5 {[%clk 0:00:07]}  Ne4+ {[%clk 0:00:01]} 54. Kf3 {[%clk 0:00:07]}  Nxd6 {[%clk 0:00:02]} 55. Kf4 {[%clk 0:00:06]}  Ke7 {[%clk 0:00:03]} 56. Ba4 {[%clk 0:00:06]}  Nf5 {[%clk 0:00:03]} 57. Kg5 {[%clk 0:00:06]}  f6+ {[%clk 0:00:03]} 58. Kxh5 {[%clk 0:00:06]}  Nd6 {[%clk 0:00:04]} 59. Kg4 {[%clk 0:00:07]}  Nb7 {[%clk 0:00:04]} 60. Bb5 {[%clk 0:00:05]}  Nc5 {[%clk 0:00:05]} 61. Bc4 {[%clk 0:00:06]}  Kd6 {[%clk 0:00:05]} 62. Kf4 {[%clk 0:00:05]}  f5 {[%clk 0:00:06]} 63. Kg5 {[%clk 0:00:06]}  Ne4+ {[%clk 0:00:05]} 64. Kf4 {[%clk 0:00:03]}  Nxf2 {[%clk 0:00:06]} 65. Ke3 {[%clk 0:00:04]}  Ne4 {[%clk 0:00:06]} 66. Kf4 {[%clk 0:00:04]}  Nc5 {[%clk 0:00:06]} 67. Ke3 {[%clk 0:00:04]}  Ke5 {[%clk 0:00:07]} 68. Kf3 {[%clk 0:00:03]}  Ne4 {[%clk 0:00:07]} 69. Ke3 {[%clk 0:00:03]}  Nd6 {[%clk 0:00:07]} 70. Ba6 {[%clk 0:00:02]}  f4+ {[%clk 0:00:07]} 71. Kf3 {[%clk 0:00:02]}  Nf5 {[%clk 0:00:07]} 72. Bc4 {[%clk 0:00:02]}  Nd4+ {[%clk 0:00:08]} 73. Kf2 {[%clk 0:00:01]}  Kd6 {[%clk 0:00:09]} 74. Bd3 {[%clk 0:00:01]}  e5 {[%clk 0:00:09]} 75. Ke1 {[%clk 0:00:01]}  Kc5 {[%clk 0:00:10]} 76. Bc4 {[%clk 0:00:02]}  Kb4 {[%clk 0:00:10]} 77. Kd2 {[%clk 0:00:03]}  Nxb3+ {[%clk 0:00:10]} 78. Kd3 {[%clk 0:00:01]}  Nc5+ {[%clk 0:00:10]} 0-1


[Site "https://www.chess.com"]

[Event "Titled Tuesday Blitz August 24 2021"]
[White "Laurusas, Tomas"]
[Black "Tologon tegin, Semetei"]
[WhiteFideId "12803731"]
[BlackFideId "13800574"]
[WhiteElo "2542"]
[BlackElo "2224"]
[Result "1-0"]
[Round "08"]
[TimeControl "180+1"]
[Date "2021.08.24"]
[WhiteClock "0:00:08"]
[BlackClock "0:00:17"]

1. d4 {[%clk 0:03:00]}  Nf6 {[%clk 0:02:59]} 2. c4 {[%clk 0:03:00]}  e6 {[%clk 0:02:58]} 3. Nc3 {[%clk 0:03:00]}  Bb4 {[%clk 0:02:57]} 4. e3 {[%clk 0:02:55]}  b6 {[%clk 0:02:55]} 5. Bd2 {[%clk 0:02:49]}  Bb7 {[%clk 0:02:55]} 6. Rc1 {[%clk 0:02:46]}  O-O {[%clk 0:02:53]} 7. Nf3 {[%clk 0:02:45]}  d6 {[%clk 0:02:47]} 8. Be2 {[%clk 0:02:43]}  Nbd7 {[%clk 0:02:47]} 9. O-O {[%clk 0:02:43]}  Qe7 {[%clk 0:02:34]} 10. Nd5 {[%clk 0:02:10]}  exd5 {[%clk 0:02:31]} 11. Bxb4 {[%clk 0:02:10]}  c5 {[%clk 0:02:32]} 12. Ba3 {[%clk 0:02:07]}  Rad8 {[%clk 0:02:29]} 13. Qc2 {[%clk 0:01:57]}  Ne4 {[%clk 0:02:26]} 14. Rfd1 {[%clk 0:01:41]}  Ng5 {[%clk 0:02:14]} 15. dxc5 {[%clk 0:01:31]}  dxc5 {[%clk 0:02:07]} 16. cxd5 {[%clk 0:01:31]}  Nxf3+ {[%clk 0:01:49]} 17. Bxf3 {[%clk 0:01:31]}  Ne5 {[%clk 0:01:48]} 18. Be4 {[%clk 0:01:24]}  g6 {[%clk 0:01:43]} 19. g3 {[%clk 0:01:05]}  f5 {[%clk 0:01:32]} 20. Bg2 {[%clk 0:01:04]}  Rf6 {[%clk 0:01:33]} 21. b4 {[%clk 0:00:59]}  c4 {[%clk 0:01:31]} 22. Bb2 {[%clk 0:00:55]}  b5 {[%clk 0:01:28]} 23. d6 {[%clk 0:00:32]}  Rfxd6 {[%clk 0:01:09]} 24. Rxd6 {[%clk 0:00:21]}  Rxd6 {[%clk 0:00:59]} 25. Bxe5 {[%clk 0:00:19]}  Bxg2 {[%clk 0:00:41]} 26. Bxd6 {[%clk 0:00:18]}  Qb7 {[%clk 0:00:41]} 27. f4 {[%clk 0:00:15]}  Bc6 {[%clk 0:00:35]} 28. Qd2 {[%clk 0:00:13]}  Qd7 {[%clk 0:00:34]} 29. Rd1 {[%clk 0:00:12]}  Qe6 {[%clk 0:00:33]} 30. Be5 {[%clk 0:00:12]}  c3 {[%clk 0:00:19]} 31. Qxc3 {[%clk 0:00:09]}  Bb7 {[%clk 0:00:18]} 32. Qc7 {[%clk 0:00:08]}  Qxa2 {[%clk 0:00:17]} 33. Qg7# {[%clk 0:00:08]} 1-0


[Site "https://www.chess.com"]

[Event "Titled Tuesday Blitz August 24 2021"]
[White "Leitao, Rafael"]
[Black "Golubev, Mikhail"]
[WhiteFideId "2101246"]
[BlackFideId "14100983"]
[WhiteElo "2609"]
[BlackElo "2374"]
[Result "1/2-1/2"]
[Round "08"]
[TimeControl "180+1"]
[Date "2021.08.24"]
[WhiteClock "0:00:45"]
[BlackClock "0:00:24"]

1. c4 {[%clk 0:03:00]}  g6 {[%clk 0:02:51]} 2. Nc3 {[%clk 0:02:59]}  Bg7 {[%clk 0:02:52]} 3. g3 {[%clk 0:03:00]}  e5 {[%clk 0:02:50]} 4. Bg2 {[%clk 0:03:00]}  d6 {[%clk 0:02:50]} 5. d3 {[%clk 0:02:59]}  Nc6 {[%clk 0:02:49]} 6. Nf3 {[%clk 0:03:00]}  f5 {[%clk 0:02:48]} 7. O-O {[%clk 0:03:00]}  h6 {[%clk 0:02:47]} 8. Rb1 {[%clk 0:02:54]}  a5 {[%clk 0:02:46]} 9. a3 {[%clk 0:02:54]}  g5 {[%clk 0:02:44]} 10. Nd5 {[%clk 0:02:49]}  Nce7 {[%clk 0:02:39]} 11. Nd2 {[%clk 0:01:58]}  Nxd5 {[%clk 0:02:34]} 12. cxd5 {[%clk 0:01:59]}  Nf6 {[%clk 0:02:24]} 13. b4 {[%clk 0:01:59]}  axb4 {[%clk 0:02:24]} 14. axb4 {[%clk 0:02:00]}  O-O {[%clk 0:02:24]} 15. Bb2 {[%clk 0:01:59]}  Rf7 {[%clk 0:02:19]} 16. b5 {[%clk 0:01:53]}  b6 {[%clk 0:02:17]} 17. Qc2 {[%clk 0:01:49]}  Bd7 {[%clk 0:02:04]} 18. Qc4 {[%clk 0:01:46]}  h5 {[%clk 0:01:34]} 19. Ra1 {[%clk 0:01:42]}  Rc8 {[%clk 0:01:32]} 20. Ra7 {[%clk 0:01:42]}  h4 {[%clk 0:01:16]} 21. Nf3 {[%clk 0:01:38]}  hxg3 {[%clk 0:01:12]} 22. hxg3 {[%clk 0:01:25]}  Ng4 {[%clk 0:01:10]} 23. Rc1 {[%clk 0:01:21]}  e4 {[%clk 0:00:49]} 24. Bxg7 {[%clk 0:01:18]}  exf3 {[%clk 0:00:42]} 25. exf3 {[%clk 0:01:18]}  Kxg7 {[%clk 0:00:39]} 26. fxg4 {[%clk 0:01:17]}  fxg4 {[%clk 0:00:39]} 27. Qd4+ {[%clk 0:01:09]}  Qf6 {[%clk 0:00:37]} 28. Qxf6+ {[%clk 0:00:59]}  Kxf6 {[%clk 0:00:37]} 29. Rb1 {[%clk 0:00:52]}  Bf5 {[%clk 0:00:35]} 30. Ra3 {[%clk 0:00:46]}  Re8 {[%clk 0:00:31]} 31. Rc1 {[%clk 0:00:45]}  Ree7 {[%clk 0:00:29]} 32. Rac3 {[%clk 0:00:45]}  Rh7 {[%clk 0:00:23]} 33. Rc4 {[%clk 0:00:45]}  Kg6 {[%clk 0:00:23]} 34. R4c3 {[%clk 0:00:45]}  Kf6 {[%clk 0:00:23]} 35. Rc4 {[%clk 0:00:45]}  Kg6 {[%clk 0:00:23]} 36. R4c3 {[%clk 0:00:45]}  Kf6 {[%clk 0:00:24]} 1/2-1/2


[Site "https://www.chess.com"]

[Event "Titled Tuesday Blitz August 24 2021"]
[White "Loy, Konstantin"]
[Black "Florescu, Codrut-Constantin"]
[WhiteFideId "14122499"]
[BlackFideId "1202200"]
[WhiteElo "2084"]
[BlackElo "2243"]
[Result "1-0"]
[Round "08"]
[TimeControl "180+1"]
[Date "2021.08.24"]
[WhiteClock "0:00:10"]
[BlackClock "0:00:25"]

1. e4 {[%clk 0:03:00]}  b6 {[%clk 0:03:00]} 2. d4 {[%clk 0:03:00]}  Bb7 {[%clk 0:03:01]} 3. Bd3 {[%clk 0:03:00]}  e6 {[%clk 0:03:01]} 4. Nf3 {[%clk 0:03:00]}  c5 {[%clk 0:03:02]} 5. c3 {[%clk 0:02:59]}  Nf6 {[%clk 0:02:59]} 6. Qe2 {[%clk 0:02:58]}  Qc8 {[%clk 0:02:56]} 7. O-O {[%clk 0:02:57]}  Ba6 {[%clk 0:02:49]} 8. a3 {[%clk 0:02:44]}  Bxd3 {[%clk 0:02:44]} 9. Qxd3 {[%clk 0:02:45]}  cxd4 {[%clk 0:02:44]} 10. cxd4 {[%clk 0:02:43]}  d5 {[%clk 0:02:44]} 11. Nc3 {[%clk 0:02:32]}  Qa6 {[%clk 0:02:00]} 12. Qe3 {[%clk 0:02:07]}  dxe4 {[%clk 0:01:47]} 13. Nxe4 {[%clk 0:02:06]}  Nbd7 {[%clk 0:01:47]} 14. Ne5 {[%clk 0:01:56]}  Qb7 {[%clk 0:01:41]} 15. Nxf6+ {[%clk 0:01:44]}  Nxf6 {[%clk 0:01:39]} 16. Qb3 {[%clk 0:01:23]}  Qd5 {[%clk 0:01:30]} 17. Qa4+ {[%clk 0:01:12]}  b5 {[%clk 0:01:30]} 18. Qa6 {[%clk 0:01:12]}  Bd6 {[%clk 0:01:18]} 19. Bg5 {[%clk 0:00:53]}  Ne4 {[%clk 0:01:07]} 20. Bf4 {[%clk 0:00:43]}  O-O {[%clk 0:01:05]} 21. Rad1 {[%clk 0:00:39]}  Nf6 {[%clk 0:00:57]} 22. Rfe1 {[%clk 0:00:35]}  Rfc8 {[%clk 0:00:56]} 23. Bg5 {[%clk 0:00:35]}  Ne4 {[%clk 0:00:53]} 24. Bf4 {[%clk 0:00:34]}  Bf8 {[%clk 0:00:51]} 25. h3 {[%clk 0:00:24]}  Rc2 {[%clk 0:00:44]} 26. Nd3 {[%clk 0:00:20]}  Nf6 {[%clk 0:00:19]} 27. Be3 {[%clk 0:00:16]}  Qc6 {[%clk 0:00:15]} 28. Qxc6 {[%clk 0:00:16]}  Rxc6 {[%clk 0:00:16]} 29. Rc1 {[%clk 0:00:16]}  Rac8 {[%clk 0:00:16]} 30. Rxc6 {[%clk 0:00:16]}  Rxc6 {[%clk 0:00:17]} 31. Rc1 {[%clk 0:00:17]}  Rxc1+ {[%clk 0:00:17]} 32. Nxc1 {[%clk 0:00:17]}  Nd5 {[%clk 0:00:17]} 33. Kf1 {[%clk 0:00:18]}  f6 {[%clk 0:00:18]} 34. Ke2 {[%clk 0:00:18]}  Kf7 {[%clk 0:00:19]} 35. Kd3 {[%clk 0:00:18]}  a6 {[%clk 0:00:19]} 36. Ne2 {[%clk 0:00:18]}  Ke8 {[%clk 0:00:19]} 37. Nc3 {[%clk 0:00:19]}  Nxc3 {[%clk 0:00:19]} 38. Kxc3 {[%clk 0:00:18]}  Kd7 {[%clk 0:00:20]} 39. Bc1 {[%clk 0:00:10]}  Kc6 {[%clk 0:00:21]} 40. b3 {[%clk 0:00:10]}  Kd5 {[%clk 0:00:21]} 41. f3 {[%clk 0:00:09]}  h5 {[%clk 0:00:22]} 42. a4 {[%clk 0:00:08]}  bxa4 {[%clk 0:00:21]} 43. bxa4 {[%clk 0:00:08]}  Bd6 {[%clk 0:00:22]} 44. Kd3 {[%clk 0:00:08]}  g6 {[%clk 0:00:21]} 45. Bd2 {[%clk 0:00:08]}  Bc7 {[%clk 0:00:21]} 46. Bc3 {[%clk 0:00:08]}  Bb6 {[%clk 0:00:21]} 47. Bb2 {[%clk 0:00:08]}  Ba5 {[%clk 0:00:21]} 48. Ba1 {[%clk 0:00:08]}  f5 {[%clk 0:00:21]} 49. Bb2 {[%clk 0:00:08]}  g5 {[%clk 0:00:21]} 50. g4 {[%clk 0:00:06]}  hxg4 {[%clk 0:00:20]} 51. hxg4 {[%clk 0:00:06]}  f4 {[%clk 0:00:20]} 52. Ba1 {[%clk 0:00:05]}  Bd8 {[%clk 0:00:19]} 53. Bb2 {[%clk 0:00:05]}  Bf6 {[%clk 0:00:20]} 54. Bc3 {[%clk 0:00:05]}  Bg7 {[%clk 0:00:20]} 55. Bb2 {[%clk 0:00:05]}  Bf6 {[%clk 0:00:20]} 56. Bc3 {[%clk 0:00:06]}  Bd8 {[%clk 0:00:20]} 57. Bb2 {[%clk 0:00:04]}  Ba5 {[%clk 0:00:20]} 58. Ba1 {[%clk 0:00:04]}  Bb4 {[%clk 0:00:21]} 59. Bb2 {[%clk 0:00:04]}  Kc6 {[%clk 0:00:17]} 60. Kc4 {[%clk 0:00:03]}  Bd6 {[%clk 0:00:17]} 61. Bc3 {[%clk 0:00:03]}  Bc7 {[%clk 0:00:16]} 62. Bb4 {[%clk 0:00:03]}  Bd8 {[%clk 0:00:16]} 63. Bc5 {[%clk 0:00:04]}  Bf6 {[%clk 0:00:16]} 64. Bb4 {[%clk 0:00:03]}  e5 {[%clk 0:00:15]} 65. dxe5 {[%clk 0:00:03]}  Bxe5 {[%clk 0:00:16]} 66. Be7 {[%clk 0:00:03]}  Kb6 {[%clk 0:00:15]} 67. Bxg5 {[%clk 0:00:03]}  Ka5 {[%clk 0:00:15]} 68. Kb3 {[%clk 0:00:04]}  Kb6 {[%clk 0:00:15]} 69. Bd8+ {[%clk 0:00:03]}  Kc5 {[%clk 0:00:16]} 70. g5 {[%clk 0:00:02]}  Kd4 {[%clk 0:00:16]} 71. Bf6 {[%clk 0:00:02]}  Kd5 {[%clk 0:00:16]} 72. Bxe5 {[%clk 0:00:02]}  Kxe5 {[%clk 0:00:16]} 73. Kc4 {[%clk 0:00:03]}  Kf5 {[%clk 0:00:17]} 74. Kd4 {[%clk 0:00:03]}  Kxg5 {[%clk 0:00:17]} 75. Ke5 {[%clk 0:00:04]}  a5 {[%clk 0:00:16]} 76. Ke4 {[%clk 0:00:04]}  Kg6 {[%clk 0:00:16]} 77. Kxf4 {[%clk 0:00:05]}  Kf6 {[%clk 0:00:17]} 78. Ke4 {[%clk 0:00:04]}  Ke6 {[%clk 0:00:18]} 79. Kd4 {[%clk 0:00:04]}  Kf5 {[%clk 0:00:18]} 80. Kc5 {[%clk 0:00:05]}  Kf4 {[%clk 0:00:19]} 81. Kb5 {[%clk 0:00:06]}  Kxf3 {[%clk 0:00:20]} 82. Kxa5 {[%clk 0:00:06]}  Ke4 {[%clk 0:00:21]} 83. Kb6 {[%clk 0:00:07]}  Ke5 {[%clk 0:00:22]} 84. a5 {[%clk 0:00:07]}  Ke6 {[%clk 0:00:23]} 85. Kb7 {[%clk 0:00:08]}  Kd7 {[%clk 0:00:24]} 86. a6 {[%clk 0:00:08]}  Kd6 {[%clk 0:00:24]} 87. a7 {[%clk 0:00:09]}  Kc5 {[%clk 0:00:25]} 88. a8=Q {[%clk 0:00:10]} 1-0


[Site "https://www.chess.com"]

[Event "Titled Tuesday Blitz August 24 2021"]
[White "Machidon, Cristi"]
[Black "Zong, Davis"]
[WhiteFideId "13904590"]
[BlackFideId "30903955"]
[WhiteElo "2312"]
[BlackElo "2417"]
[Result "1-0"]
[Round "08"]
[TimeControl "180+1"]
[Date "2021.08.24"]
[WhiteClock "0:01:32"]
[BlackClock "0:01:07"]

1. d4 {[%clk 0:03:00]}  d5 {[%clk 0:02:59]} 2. Bf4 {[%clk 0:02:58]}  Nf6 {[%clk 0:02:59]} 3. e3 {[%clk 0:02:58]}  c5 {[%clk 0:03:00]} 4. c3 {[%clk 0:02:59]}  Nc6 {[%clk 0:03:00]} 5. Nd2 {[%clk 0:02:59]}  e6 {[%clk 0:03:00]} 6. Bd3 {[%clk 0:02:58]}  Bd6 {[%clk 0:03:01]} 7. Bxd6 {[%clk 0:02:59]}  Qxd6 {[%clk 0:03:02]} 8. f4 {[%clk 0:02:59]}  b6 {[%clk 0:02:54]} 9. Ngf3 {[%clk 0:02:44]}  Bb7 {[%clk 0:02:54]} 10. O-O {[%clk 0:02:43]}  Ne7 {[%clk 0:02:52]} 11. Ne5 {[%clk 0:02:41]}  Ne4 {[%clk 0:02:53]} 12. Qa4+ {[%clk 0:02:21]}  Kf8 {[%clk 0:02:45]} 13. Nxe4 {[%clk 0:02:02]}  dxe4 {[%clk 0:02:44]} 14. Ba6 {[%clk 0:02:03]}  Bc6 {[%clk 0:02:31]} 15. Nxc6 {[%clk 0:01:56]}  Nxc6 {[%clk 0:02:26]} 16. Bb7 {[%clk 0:01:56]}  Rb8 {[%clk 0:01:37]} 17. Qxc6 {[%clk 0:01:54]}  Qxc6 {[%clk 0:01:38]} 18. Bxc6 {[%clk 0:01:54]}  Ke7 {[%clk 0:01:37]} 19. Bxe4 {[%clk 0:01:55]}  f5 {[%clk 0:01:37]} 20. Bf3 {[%clk 0:01:55]}  cxd4 {[%clk 0:01:35]} 21. exd4 {[%clk 0:01:55]}  Kf6 {[%clk 0:01:35]} 22. Rfe1 {[%clk 0:01:55]}  a5 {[%clk 0:01:34]} 23. Re5 {[%clk 0:01:54]}  Rhd8 {[%clk 0:01:34]} 24. Rae1 {[%clk 0:01:54]}  Rd6 {[%clk 0:01:34]} 25. g4 {[%clk 0:01:54]}  g6 {[%clk 0:01:32]} 26. d5 {[%clk 0:01:53]}  exd5 {[%clk 0:01:31]} 27. g5+ {[%clk 0:01:49]}  Kg7 {[%clk 0:01:28]} 28. Bxd5 {[%clk 0:01:48]}  Rbd8 {[%clk 0:01:27]} 29. Re7+ {[%clk 0:01:44]}  Kf8 {[%clk 0:01:27]} 30. c4 {[%clk 0:01:43]}  b5 {[%clk 0:01:25]} 31. b3 {[%clk 0:01:42]}  bxc4 {[%clk 0:01:25]} 32. bxc4 {[%clk 0:01:43]}  R6d7 {[%clk 0:01:20]} 33. Rxd7 {[%clk 0:01:40]}  Rxd7 {[%clk 0:01:21]} 34. Kf2 {[%clk 0:01:39]}  a4 {[%clk 0:01:21]} 35. h4 {[%clk 0:01:35]}  a3 {[%clk 0:01:17]} 36. h5 {[%clk 0:01:35]}  gxh5 {[%clk 0:01:17]} 37. Rh1 {[%clk 0:01:35]}  Kg7 {[%clk 0:01:12]} 38. Rxh5 {[%clk 0:01:34]}  Rd6 {[%clk 0:01:12]} 39. Rh3 {[%clk 0:01:33]}  Ra6 {[%clk 0:01:09]} 40. Ke3 {[%clk 0:01:33]}  Rb6 {[%clk 0:01:06]} 41. Kd4 {[%clk 0:01:32]}  Rb2 {[%clk 0:01:06]} 42. Rxa3 {[%clk 0:01:32]}  Rf2 {[%clk 0:01:07]} 43. Ke5 {[%clk 0:01:32]} 1-0


[Site "https://www.chess.com"]